bitfinex-derivatives/quotes_BNBF0:USTF0_20250112
["timestamp","ask_amount","ask_price","bid_price","bid_amount"]
[1736656399541,1.07766396,696.41,695.35,2.74733741]
[1736656399740,1.07766396,696.41,695.35,1.81441368]
[1736656400442,1.07766396,696.48,695.35,1.81441368]
[1736656400643,1.07766396,696.48,695.35,4.8553139]
[1736656401642,1.07766396,696.5,695.35,4.8553139]
[1736656402438,0.28710881,696.6,695.36,0.93256666]
[1736656402439,1.07766396,696.51,695.36,0.93256666]
[1736656402639,1.07766396,696.51,695.36,2.74698034]
[1736656403637,1.07766396,696.54,695.36,2.74698034]
[1736656404943,1.07766396,696.56,695.36,2.74698034]
[1736656406940,1.36477277,696.6,695.36,2.74698034]
[1736656407345,1.36477277,696.6,695.31,2.74698034]
[1736656407740,1.36477277,696.6,695.32,0.28763734]
[1736656408146,1.36477277,696.6,695.32,1.98763734]
[1736656408346,1.36477277,696.6,695.32,2.920204]
[1736656408840,0.28710881,696.6,695.32,4.21265421]
[1736656409146,0.28710881,696.6,695.33,1.81441368]
[1736656409345,0.28710881,696.6,695.33,3.03461355]
[1736656410446,0.28710881,696.6,695.33,6.07551377]
[1736656410647,0.28710881,696.6,695.34,2.74698034]
[1736656411744,0.28710881,696.6,695.33,0.28763321]
[1736656417048,0.28044253,696.6,695.33,0.28763321]
[1736656427358,0.28044253,696.6,695.33,1.49663321]
[1736656437169,0.28044253,696.6,695.38,1.29245021]
[1736656439967,0.28044253,696.6,695.36,2.7375243]
[1736656439968,0.28044253,696.6,695.4,1.29245021]
[1736656442068,0.28044253,696.6,695.4,2.22205025]
[1736656442267,0.28044253,696.6,695.4,4.02997451]
[1736656443067,0.28044253,696.6,695.42,1.29245021]
[1736656443472,0.28044253,696.6,695.42,2.22205025]
[1736656443670,0.28044253,696.6,695.42,4.02997451]
[1736656444168,0.28044253,696.6,695.45,1.29245021]
[1736656446176,0.28044253,696.6,695.46,1.29245021]
[1736656447871,0.28044253,696.6,695.47,1.29245021]
[1736656449774,0.28044253,696.6,695.48,1.29245021]
[1736656451981,1.35810649,696.6,695.46,3.03020247]
[1736656452180,1.35810649,696.6,695.46,5.76795214]
[1736656452381,1.35810649,696.6,695.47,2.73774967]
[1736656452781,1.07766396,696.58,695.47,2.73774967]
[1736656452982,1.07766396,696.58,695.47,5.76795214]
[1736656453182,1.07766396,696.58,695.48,2.73825436]
[1736656456384,1.07766396,696.58,695.48,5.76845683]
[1736656456684,1.07766396,696.58,695.49,2.73825436]
[1736656457486,1.07766396,696.58,695.49,3.51992426]
[1736656457701,1.07766396,696.58,695.49,1.712]
[1736656458083,0.28044253,696.6,695.49,1.712]
[1736656458084,0.28044253,696.6,695.51,1.29245021]
[1736656460189,0.28044253,696.6,695.51,3.10037447]
[1736656465994,0.28044253,696.6,695.51,1.80792426]
[1736656466189,0.28044253,696.6,695.5,4.83812673]
[1736656469088,0.28044253,696.6,695.51,0.932289]
[1736656469293,0.28044253,696.6,695.51,2.74021326]
[1736656469594,0.28044253,696.6,695.51,1.80792426]
[1736656469790,0.28044253,696.6,695.5,4.83812673]
[1736656471695,0.28044253,696.6,695.51,1.80792426]
[1736656472093,0.28044253,696.6,695.5,3.03020247]
[1736656472293,0.28044253,696.6,695.42,0.93260642]
[1736656472493,0.28044253,696.6,695.41,2.74053068]
[1736656472690,0.28044253,696.6,695.42,1.051]
[1736656474799,1.07766396,696.58,695.46,1.29245021]
[1736656475899,1.07766396,696.58,695.47,1.29245021]
[1736656480702,0.28044253,696.6,695.52,1.29245021]
[1736656484108,0.28044253,696.6,695.53,1.29245021]
[1736656485809,0.28044253,696.6,695.52,3.03020247]
[1736656486703,0.28044253,696.6,695.43,1.81331449]
[1736656486906,0.28044253,696.6,695.42,1.051]
[1736656495812,0.28044253,696.6,695.44,1.29245021]
[1736656496810,0.28044253,696.6,695.45,1.29245021]
[1736656497306,0.28044253,696.6,695.45,2.74945021]
[1736656497910,0.28044253,696.6,695.47,1.29245021]
[1736656500111,0.28044253,696.6,695.47,4.32265268]
[1736656500312,0.28044253,696.6,695.48,2.7462525]
[1736656501515,0.28044253,696.6,695.51,1.29245021]
[1736656502812,0.28044253,696.6,695.54,1.29245021]
[1736656504314,0.28044253,696.6,695.52,2.7462525]
[1736656505509,0.28044253,696.6,695.51,4.03870271]
[1736656507008,0.28044253,696.6,695.52,3.03020247]
[1736656507211,0.28044253,696.6,695.52,5.77645497]
[1736656507508,0.28044253,696.6,695.53,2.7462525]
[1736656508414,0.28044253,696.6,695.52,2.7462525]
[1736656509814,0.28044253,696.6,695.5,2.7462525]
[1736656511615,0.28044253,696.6,695.49,2.7462525]
[1736656516425,0.28044253,696.6,695.49,4.4192525]
[1736656516624,0.28044253,696.6,695.5,0.93293801]
[1736656516926,0.28044253,696.6,695.5,3.96314048]
[1736656517126,0.28044253,696.6,695.51,1.81331449]
[1736656517318,0.28044253,696.6,695.51,2.7462525]
[1736656518821,0.28044253,696.6,695.51,4.03870271]
[1736656519420,0.28044253,696.6,695.52,3.03020247]
[1736656519622,0.28044253,696.6,695.52,5.77645497]
[1736656519826,0.28044253,696.6,695.53,2.7462525]
[1736656521329,0.28044253,696.6,695.52,3.03020247]
[1736656522625,0.28044253,696.6,695.49,1.673]
[1736656532233,0.28044253,696.6,695.5,1.29245021]
[1736656533137,0.28044253,696.6,695.57,1.29245021]
[1736656534339,0.28044253,696.6,695.58,1.29245021]
[1736656535040,0.28044253,696.6,695.59,1.29245021]
[1736656536642,0.28044253,696.6,695.59,3.23245021]
[1736656537940,0.28044253,696.6,695.59,5.04188084]
[1736656538140,0.28044253,696.6,695.6,1.29245021]
[1736656538947,0.28044253,696.6,695.59,1.94]
[1736656557457,0.28044253,696.6,695.59,4.68321355]
[1736656557659,0.28044253,696.6,695.6,0.93240638]
[1736656558160,0.28044253,696.6,695.6,3.96611516]
[1736656558356,0.28044253,696.6,695.6,3.03370878]
[1736656559458,1.07766396,696.78,695.59,1.94]
[1736656559858,1.07766396,696.76,695.59,1.94]
[1736656560854,1.07766396,696.77,695.59,1.94]
[1736656561658,1.07766396,696.78,695.59,1.94]
[1736656565764,1.07766396,696.76,695.59,1.94]
[1736656567566,1.07766396,696.77,695.59,3.75288869]
[1736656568062,1.07766396,696.77,695.6,0.93276304]
[1736656568461,1.07766396,696.77,695.6,3.96647182]
[1736656568661,1.07766396,696.77,695.61,1.81288869]
[1736656568865,1.07766396,696.77,695.61,2.74565173]
[1736656569465,1.07766396,696.73,695.61,2.74565173]
[1736656569764,1.07766396,696.73,695.61,4.58665173]
[1736656569960,1.07766396,696.73,695.62,2.74565173]
[1736656570159,1.07766396,696.73,695.61,1.841]
[1736656570567,1.07766396,696.72,695.61,1.841]
[1736656571269,1.07766396,696.9,695.61,1.841]
[1736656572168,1.07766396,696.94,695.61,1.841]
[1736656573170,1.07766396,696.93,695.61,1.841]
[1736656574270,1.07766396,696.95,695.61,1.841]
[1736656578673,0.28691111,697.08,695.61,1.841]
[1736656578674,1.07766396,696.93,695.61,1.841]
[1736656579677,0.28691111,697.08,695.61,1.841]
[1736656579678,1.07766396,696.94,695.61,1.841]
[1736656580375,1.07766396,696.82,695.61,1.841]
[1736656581274,1.07766396,696.83,695.61,1.841]
[1736656582077,1.07766396,696.82,695.61,1.841]
[1736656583175,1.07766396,696.83,695.61,1.841]
[1736656586280,1.07766396,696.85,695.61,1.841]
[1736656588185,1.07766396,696.92,695.61,1.841]
[1736656589683,1.07766396,696.92,695.61,5.80672812]
[1736656589879,1.07766396,696.92,695.62,2.7444335]
[1736656591084,1.07766396,696.92,695.62,5.77814228]
[1736656591280,1.07766396,696.92,695.63,2.7444335]
[1736656591682,1.07766396,696.93,695.63,2.7444335]
[1736656592584,1.07766396,696.92,695.63,2.7444335]
[1736656593386,1.07766396,696.91,695.63,2.7444335]
[1736656594288,1.07766396,696.91,695.58,2.7444335]
[1736656594582,1.07766396,696.91,695.58,3.03196333]
[1736656594784,1.07766396,696.91,695.58,4.65496333]
[1736656594989,1.07766396,696.91,695.59,0.93201934]
[1736656595291,1.07766396,696.91,695.6,0.28752156]
[1736656596486,1.07766396,696.92,695.6,3.03195506]
[1736656597592,1.07766396,696.9,695.6,4.32440527]
[1736656597784,1.07766396,696.9,695.61,0.93201934]
[1736656598492,1.07766396,696.9,695.62,0.28751329]
[1736656599293,1.07766396,696.91,695.62,3.03194679]
[1736656600194,1.07766396,696.91,695.62,6.06565557]
[1736656600394,1.07766396,696.91,695.63,2.7444335]
[1736656600594,1.07766396,696.91,695.64,0.28750503]
[1736656601997,1.07766396,696.97,695.64,1.57995524]
[1736656602190,1.07766396,696.97,695.64,2.51197458]
[1736656602891,1.07766396,696.99,695.64,2.51197458]
[1736656603290,1.07766396,696.99,695.64,5.54568336]
[1736656603495,1.07766396,696.99,695.65,2.7444335]
[1736656604794,1.07766396,696.99,695.66,0.28749676]
[1736656605296,1.07766396,696.99,695.66,3.03193026]
[1736656605796,0.28691111,697.08,695.66,3.03193026]
[1736656605797,1.07766396,697.01,695.66,3.03193026]
[1736656605998,1.07766396,697.01,695.66,0.28749676]
[1736656607398,1.07766396,697.03,695.66,0.28749676]
[1736656608099,1.07766396,697.04,695.66,0.28749676]
[1736656609093,1.07766396,697.05,695.66,0.28749676]
[1736656609896,1.07766396,697.04,695.66,0.28749676]
[1736656610999,1.07766396,697.04,695.66,1.29949676]
[1736656612100,1.07766396,697.02,695.66,1.29949676]
[1736656613800,1.07766396,697.02,695.66,4.33320554]
[1736656614099,1.07766396,697.02,695.67,2.7444335]
[1736656614300,1.07766396,697.02,695.68,0.2874885]
[1736656615701,1.07766396,697.02,695.68,3.031922]
[1736656616097,1.07766396,697.04,695.68,3.031922]
[1736656616996,1.07766396,697.03,695.68,3.031922]
[1736656617402,1.07766396,697.03,695.68,0.2874885]
[1736656617902,0.28691111,697.08,695.68,0.2874885]
[1736656626312,0.28691111,697.08,695.68,1.7064885]
[1736656627811,0.28691111,697.08,695.68,2.99893871]
[1736656628015,0.28691111,697.08,695.68,3.92846428]
[1736656628315,0.28691111,697.08,695.69,1.80738632]
[1736656628615,0.28691111,697.08,695.7,0.28748023]
[1736656629009,0.28691111,697.08,695.7,3.02439212]
[1736656631716,0.28691111,697.08,695.7,4.31684233]
[1736656632016,0.28691111,697.08,695.71,0.92952557]
[1736656632216,0.28691111,697.08,695.72,0.28747197]
[1736656632816,0.28691111,697.08,695.72,1.57992218]
[1736656633016,0.28691111,697.08,695.72,4.31683407]
[1736656633217,0.28691111,697.08,695.73,0.92952557]
[1736656633412,0.28691111,697.08,695.74,0.2874637]
[1736656634119,0.28691111,697.08,695.74,3.02437559]
[1736656635316,0.28691111,697.08,695.74,0.2874637]
[1736656636119,0.28691111,697.08,695.74,4.25069805]
[1736656636419,0.28691111,697.08,695.75,1.80738632]
[1736656636721,1.36457507,697.08,695.76,0.28745544]
[1736656638714,0.28691111,697.08,695.76,0.28745544]
[1736656639416,0.28691111,697.08,695.76,1.75145544]
[1736656639622,1.36457507,697.08,695.76,2.68098101]
[1736656640121,1.36457507,697.08,695.76,5.71468979]
[1736656640322,1.36457507,697.08,695.77,2.73691189]
[1736656640521,1.36457507,697.08,695.78,0.28744718]
[1736656641724,0.28691111,697.08,695.78,0.28744718]
[1736656658942,1.07766396,696.99,695.85,1.29245021]
[1736656659946,0.28691111,697.08,695.79,2.73913625]
[1736656659947,1.07766396,696.98,695.84,1.29245021]
[1736656660743,1.07766396,696.99,695.83,1.29245021]
[1736656661548,1.07766396,696.99,695.84,1.29245021]
[1736656663651,1.07766396,696.99,695.83,4.03158646]
[1736656663846,1.07766396,696.99,695.84,3.03370878]
[1736656664047,1.07766396,696.99,695.84,5.77284503]
[1736656664244,1.07766396,696.99,695.85,2.73913625]
[1736656664745,1.07766396,696.99,695.85,4.03158646]
[1736656665451,1.07766396,696.99,695.86,3.03370878]
[1736656665649,1.07766396,696.99,695.86,5.77284503]
[1736656665846,1.07766396,696.99,695.87,2.73913625]
[1736656666047,1.07766396,696.99,695.86,3.03370878]
[1736656666744,1.07766396,696.99,695.85,1.29245021]
[1736656666949,1.07766396,697.04,695.78,0.28744718]
[1736656669152,1.07766396,697.02,695.78,0.28744718]
[1736656670653,1.07766396,697.02,695.78,1.32444718]
[1736656671155,0.28691111,697.08,695.78,1.32444718]
[1736656671156,1.07766396,697.03,695.78,1.32444718]
[1736656672048,1.07766396,697.02,695.78,1.32444718]
[1736656672852,1.07766396,697.03,695.78,1.32444718]
[1736656675350,1.07766396,697.03,695.78,4.35815596]
[1736656675554,1.07766396,697.02,695.79,2.74169636]
[1736656676759,1.07766396,696.98,695.86,1.29245021]
[1736656681261,1.07766396,696.98,695.86,2.22393289]
[1736656681463,1.07766396,696.98,695.86,4.03414657]
[1736656682362,1.07766396,696.98,695.87,3.03370878]
[1736656682662,1.07766396,696.98,695.87,5.77540514]
[1736656682862,1.07766396,696.98,695.88,2.74169636]
[1736656687365,1.07766396,696.98,695.87,4.32615899]
[1736656687764,1.07766396,696.98,695.87,1.29245021]
[1736656688568,1.07766396,696.99,695.79,1.81303159]
[1736656689468,1.07766396,697.02,695.79,1.81303159]
[1736656689662,1.07766396,697.02,695.78,1.32444718]
[1736656690668,1.07766396,697.03,695.78,1.32444718]
[1736656693372,1.07766396,697.04,695.78,1.32444718]
[1736656694976,0.28691111,697.08,695.78,1.32444718]
[1736656704985,0.28691111,697.08,695.87,1.29245021]
[1736656706479,0.28691111,697.08,695.87,2.49745021]
[1736656706785,1.07766396,697.04,695.87,1.205]
[1736656707984,1.07766396,697.05,695.87,1.205]
[1736656708176,1.07766396,697.05,695.87,2.13699824]
[1736656708380,1.07766396,697.05,695.87,3.94915595]
[1736656709179,1.07766396,697.05,695.88,3.03370878]
[1736656709379,1.07766396,697.05,695.88,5.77786473]
[1736656709685,1.07766396,697.05,695.89,2.74415595]
[1736656714389,1.36457507,697.08,695.89,2.74415595]
[1736656719790,1.07766396,697.07,695.89,2.74415595]
[1736656720886,1.07766396,697.04,695.89,2.74415595]
[1736656724193,1.07766396,697.03,695.89,2.74415595]
[1736656725497,1.07766396,697.04,695.89,2.74415595]
[1736656725690,1.07766396,697.04,695.89,1.399]
[1736656726700,1.07766396,697.03,695.89,1.399]
[1736656727791,1.07766396,697.02,695.89,1.399]
[1736656728496,1.07766396,697.04,695.9,1.29245021]
[1736656728894,1.07766396,697.04,695.9,7.07031494]
[1736656729089,1.07766396,697.04,695.91,2.74415595]
[1736656729290,0.28691111,697.08,695.91,2.74415595]
[1736656729291,1.07766396,697.03,695.91,2.74415595]
[1736656729493,1.07766396,697.03,695.91,4.03660616]
[1736656730295,1.07766396,697.03,695.92,3.03370878]
[1736656730495,1.07766396,697.03,695.92,4.84586649]
[1736656730897,1.07766396,697.04,695.92,4.84586649]
[1736656731499,1.07766396,697.04,695.93,1.81215771]
[1736656731700,1.07766396,697.04,695.89,4.14301716]
[1736656732800,1.07766396,697.04,695.9,3.03370878]
[1736656733001,1.07766396,697.04,695.9,5.77772594]
[1736656733199,1.07766396,697.04,695.91,2.74401716]
[1736656733400,1.07766396,697.05,695.91,2.74401716]
[1736656734302,1.07766396,697.04,695.91,2.74401716]
[1736656734802,1.07766396,697.04,695.91,1.81215771]
[1736656735003,1.07766396,697.04,695.9,4.84586649]
[1736656736501,1.07766396,697.01,695.9,1.81215771]
[1736656737404,1.07766396,697.03,695.9,1.81215771]
[1736656738305,1.07766396,697.03,695.89,1.399]
[1736656739305,1.07766396,697.0,695.89,1.399]
[1736656740005,1.07766396,697.01,695.89,1.399]
[1736656741104,1.07766396,696.97,695.89,1.399]
[1736656741902,0.28691111,697.08,695.89,1.399]
[1736656741903,1.07766396,696.98,695.89,1.399]
[1736656743408,1.07766396,696.98,695.89,2.33089904]
[1736656743708,1.07766396,696.98,695.89,4.14305675]
[1736656744607,1.07766396,696.99,695.9,3.03370878]
[1736656744807,1.07766396,696.99,695.9,5.77776553]
[1736656745010,1.07766396,696.99,695.91,2.74405675]
[1736656745511,1.07766396,696.98,695.91,2.74405675]
[1736656746009,1.07766396,696.98,695.91,4.41805675]
[1736656746210,1.07766396,696.98,695.91,1.674]
[1736656747514,0.28691111,697.08,695.91,1.674]
[1736656757024,1.07766396,697.07,695.91,1.674]
[1736656759024,1.07766396,697.03,695.91,1.674]
[1736656760126,1.07766396,697.04,695.91,1.674]
[1736656760726,1.07766396,697.04,695.91,2.60538293]
[1736656761829,1.07766396,697.04,695.91,5.64107139]
[1736656762029,1.07766396,697.04,695.92,1.81100868]
[1736656762525,1.07766396,697.04,695.91,3.03568846]
[1736656762731,1.07766396,697.05,695.91,3.03568846]
[1736656763430,1.07766396,697.05,695.91,1.258]
[1736656764028,1.07766396,697.07,695.91,1.258]
[1736656764832,0.28691111,697.08,695.91,1.258]
[1736656764833,1.07766396,697.04,695.91,1.258]
[1736656765827,1.07766396,697.03,695.91,1.258]
[1736656766828,1.07766396,697.04,695.91,1.258]
[1736656767726,1.07766396,697.03,695.91,1.258]
[1736656768230,1.07766396,697.04,695.91,1.258]
[1736656770537,1.07766396,697.03,695.91,1.258]
[1736656771533,1.07766396,697.04,695.91,1.258]
[1736656772736,1.07766396,697.02,695.91,1.258]
[1736656773636,0.28691111,697.08,695.91,1.258]
[1736656792742,1.07766396,697.05,695.91,1.258]
[1736656793847,1.07766396,697.04,695.91,1.258]
[1736656794641,1.07766396,697.05,695.91,1.258]
[1736656795247,1.07766396,697.05,695.91,4.00021371]
[1736656795542,1.07766396,697.05,695.92,3.03568846]
[1736656795847,1.07766396,697.01,695.92,5.77790217]
[1736656796047,1.07766396,697.01,695.93,2.74221371]
[1736656796947,1.07766396,697.01,695.93,4.19421371]
[1736656797147,1.07766396,697.01,695.94,1.81083138]
[1736656797347,1.07766396,697.01,695.93,1.452]
[1736656798649,1.07766396,697.02,695.93,1.452]
[1736656799253,1.07766396,697.02,695.93,2.38338233]
[1736656799454,1.07766396,697.02,695.93,4.19421371]
[1736656799653,1.07766396,697.01,695.93,4.19421371]
[1736656800253,1.07766396,697.01,695.94,3.03568846]
[1736656800449,1.07766396,697.01,695.94,4.84651984]
[1736656801757,1.07766396,697.01,695.94,1.81083138]
[1736656801950,1.07766396,697.01,695.93,1.452]
[1736656802355,1.07766396,697.0,695.93,1.452]
[1736656803559,1.07766396,696.99,695.93,1.452]
[1736656804461,1.07766396,697.03,695.93,1.452]
[1736656805456,1.07766396,697.04,695.93,4.48768846]
[1736656805663,1.07766396,697.04,695.94,2.74240012]
[1736656806857,1.07766396,697.03,695.94,5.77808858]
[1736656807061,1.07766396,697.03,695.95,2.74240012]
[1736656807756,1.07766396,697.03,695.94,3.03568846]
[1736656807962,1.07766396,697.04,695.94,3.03568846]
[1736656808556,1.07766396,697.04,695.93,1.452]
[1736656809261,0.28691111,697.08,695.93,1.452]
[1736656818170,1.07766396,697.02,695.93,1.452]
[1736656819070,1.07766396,697.06,695.93,1.452]
[1736656820969,1.07766396,697.07,695.93,1.452]
[1736656822271,1.07766396,697.07,695.93,2.74445021]
[1736656823475,1.36457507,697.08,695.93,2.74445021]
[1736656824376,1.36457507,697.08,695.93,5.48816084]
[1736656824578,1.36457507,697.08,695.94,2.74371063]
[1736656824878,1.36457507,697.08,695.93,2.74371063]
[1736656825472,1.36457507,697.08,695.93,5.78068156]
[1736656825676,1.36457507,697.08,695.94,2.74371063]
[1736656825971,1.07766396,697.04,695.94,4.30271063]
[1736656826176,1.07766396,697.04,695.95,0.93196305]
[1736656827178,1.07766396,697.04,695.95,3.03697093]
[1736656827376,1.07766396,697.04,695.95,4.84871851]
[1736656828482,1.07766396,697.05,695.95,1.81174758]
[1736656828677,1.07766396,697.05,695.94,1.559]
[1736656834083,1.07766396,697.06,695.94,1.559]
[1736656835789,1.07766396,697.07,695.94,1.559]
[1736656836784,0.28691111,697.08,695.94,1.559]
[1736656836785,1.07766396,697.06,695.94,1.559]
[1736656837490,1.07766396,697.06,695.94,4.30279837]
[1736656837691,1.07766396,697.05,695.95,0.93205079]
[1736656838092,1.07766396,697.05,695.94,1.559]
[1736656839094,0.28691111,697.08,695.94,1.559]
[1736656859216,1.07766396,697.07,695.94,1.559]
[1736656861118,1.07766396,697.06,695.94,1.559]
[1736656862012,1.07766396,697.06,695.94,2.49037414]
[1736656862617,1.07766396,697.06,695.94,5.52643037]
[1736656862816,1.07766396,697.06,695.95,2.7421212]
[1736656863611,0.28691111,697.08,695.95,2.7421212]
[1736656864319,0.28691111,697.08,695.95,1.635]
[1736656866518,0.28691111,697.08,695.95,2.56637414]
[1736656867018,0.28691111,697.08,695.95,5.60243037]
[1736656867220,0.28691111,697.08,695.96,2.7421212]
[1736656867419,0.28691111,697.08,695.96,1.81074706]
[1736656868720,0.28691111,697.08,695.96,4.84680329]
[1736656870221,0.28691111,697.08,695.96,3.03605623]
[1736656871821,0.28691111,697.08,695.95,1.635]
[1736656875119,1.36457507,697.08,695.95,1.635]
[1736656875717,1.07766396,697.07,695.95,1.635]
[1736656878727,0.28691111,697.08,695.95,1.635]
[1736656878728,1.07766396,697.02,695.95,1.635]
[1736656879932,0.28691111,697.08,695.95,1.635]
[1736656879933,1.07766396,697.06,695.95,1.635]
[1736656880727,1.07766396,697.05,695.95,1.635]
[1736656881130,1.07766396,697.05,695.95,2.56677588]
[1736656881427,1.07766396,697.05,695.95,1.635]
[1736656881832,1.07766396,697.06,695.95,2.56677588]
[1736656882533,1.07766396,697.06,695.95,5.60283211]
[1736656882735,1.07766396,697.06,695.96,1.81146752]
[1736656883034,1.07766396,697.05,695.96,1.81146752]
[1736656883634,1.07766396,697.05,695.96,4.84752375]
[1736656883830,1.07766396,697.04,695.96,4.84752375]
[1736656885035,1.07766396,697.05,695.96,4.84752375]
[1736656886231,1.07766396,697.04,695.96,4.84752375]
[1736656887236,1.07766396,697.05,695.96,4.84752375]
[1736656888530,1.07766396,697.05,695.96,3.03605623]
[1736656888832,1.07766396,697.05,695.85,0.93207076]
[1736656889032,1.07766396,697.05,695.84,2.74353828]
[1736656889435,1.07766396,697.05,695.84,1.031]
[1736656890136,1.07766396,697.06,695.84,1.031]
[1736656891237,1.07766396,697.05,695.84,1.031]
[1736656892137,1.07766396,697.06,695.84,1.031]
[1736656893640,0.28691111,697.08,695.85,1.29245021]
[1736656894133,0.28691111,697.08,695.85,4.03598849]
[1736656895538,0.28691111,697.08,695.86,3.03605623]
[1736656895738,0.28691111,697.08,695.86,5.77959451]
[1736656896039,0.28691111,697.08,695.87,2.74353828]
[1736656897233,0.28691111,697.08,695.87,5.77959451]
[1736656897436,0.28691111,697.08,695.88,2.74353828]
[1736656900947,1.07766396,697.06,695.88,2.74353828]
[1736656901536,1.07766396,697.06,695.86,2.74353828]
[1736656904344,1.07766396,697.06,695.86,5.77959451]
[1736656904538,1.07766396,697.06,695.87,2.74353828]
[1736656906049,1.07766396,697.05,695.87,2.74353828]
[1736656908347,1.07766396,697.07,695.88,1.29245021]
[1736656909645,1.07766396,697.07,695.88,4.32850644]
[1736656909846,1.07766396,697.07,695.89,2.74353828]
[1736656910146,1.07766396,697.07,695.89,4.03598849]
[1736656910743,1.07766396,697.07,695.9,3.03605623]
[1736656910947,1.07766396,697.07,695.9,5.77959451]
[1736656911143,1.07766396,697.06,695.91,2.74353828]
[1736656911749,1.07766396,697.06,695.91,3.79053828]
[1736656911950,1.07766396,697.06,695.92,3.03605623]
[1736656912152,1.07766396,697.06,695.92,5.77959451]
[1736656912450,1.07766396,697.06,695.93,2.74353828]
[1736656913154,1.36457507,697.08,695.93,4.03598849]
[1736656914054,0.28691111,697.08,695.93,4.03598849]
[1736656914655,0.28691111,697.08,695.94,3.03605623]
[1736656914958,0.28691111,697.08,695.94,5.77959451]
[1736656915154,0.28691111,697.08,695.95,2.74353828]
[1736656916354,1.36457507,697.08,695.95,2.74353828]
[1736656916554,1.36457507,697.08,695.95,5.77959451]
[1736656916755,1.36457507,697.08,695.96,2.74353828]
[1736656917057,0.28691111,697.08,695.96,2.74353828]
[1736656917652,0.28691111,697.08,695.93,2.74353828]
[1736656917853,1.36457507,697.08,695.93,2.74353828]
[1736656918756,0.28691111,697.08,695.93,2.74353828]
[1736656919751,1.36457507,697.08,695.93,2.74353828]
[1736656920450,0.28691111,697.08,695.93,2.74353828]
[1736656922256,1.36457507,697.08,695.93,2.74353828]
[1736656923655,0.28691111,697.08,695.93,2.74353828]
[1736656928361,1.07766396,697.07,695.93,2.74353828]
[1736656928559,1.07766396,697.07,695.92,3.03605623]
[1736656929458,0.28691111,697.08,695.92,3.03605623]
[1736656929959,0.28691111,697.08,695.91,1.047]
[1736656944275,0.28691111,697.08,695.92,1.29245021]
[1736656945779,0.28691111,697.08,695.92,2.45645021]
[1736656946079,0.28691111,697.08,695.93,1.29245021]
[1736656947280,0.28691111,697.08,695.94,1.29245021]
[1736656949275,0.28691111,697.08,695.94,4.03520997]
[1736656949476,0.28691111,697.08,695.95,1.29245021]
[1736656950379,0.28691111,697.08,695.95,3.03605623]
[1736656950581,0.28691111,697.08,695.95,5.77881599]
[1736656950778,0.28691111,697.08,695.96,2.74275976]
[1736656952776,0.28691111,697.08,695.96,1.81131835]
[1736656952980,0.28691111,697.08,695.95,4.84737458]
[1736656953477,0.28691111,697.08,695.95,1.81131835]
[1736656953677,0.28691111,697.08,695.93,4.84737458]
[1736656954679,0.28691111,697.08,695.93,3.03605623]
[1736656954882,0.28691111,697.08,695.92,1.164]
[1736656995014,0.28691111,697.08,695.93,1.29245021]
[1736656996519,0.28691111,697.08,695.93,2.72745021]
[1736656997123,0.28691111,697.08,695.94,1.29245021]
[1736656998114,0.28691111,697.08,695.94,2.74437612]
[1736656998921,0.28691111,697.08,695.94,5.78204394]
[1736656999121,0.28691111,697.08,695.95,2.74437612]
[1736657005723,0.28691111,697.08,695.95,4.03682633]
[1736657006128,0.28691111,697.08,695.96,3.03766782]
[1736657006325,0.28691111,697.08,695.96,5.78204394]
[1736657006526,0.28691111,697.08,695.97,2.74437612]
[1736657009130,0.28691111,697.08,695.97,5.78204394]
[1736657009331,0.28691111,697.08,695.98,2.74437612]
[1736657010432,0.28691111,697.08,695.97,2.74437612]
[1736657010932,0.28691111,697.08,696.0,1.29245021]
[1736657013335,0.28691111,697.08,696.0,4.33011803]
[1736657013633,0.28691111,697.08,696.01,2.74437612]
[1736657014527,0.28691111,697.08,695.98,2.74437612]
[1736657017635,1.36457507,697.08,695.98,2.74437612]
[1736657019835,1.36457507,697.08,695.97,1.29245021]
[1736657020035,1.36457507,697.08,695.96,1.29245021]
[1736657021034,0.28691111,697.08,695.56,1.29245021]
[1736657021734,0.28691111,697.08,695.78,1.57444718]
[1736657031143,0.28691111,697.08,695.97,1.29245021]
[1736657031740,0.28691111,697.08,695.96,1.29245021]
[1736657033346,0.28691111,697.08,695.95,1.29245021]
[1736657034547,0.28691111,697.08,695.94,4.03638015]
[1736657035542,0.28691111,697.08,695.95,1.29245021]
[1736657035946,0.28691111,697.08,695.95,4.33012462]
[1736657036146,0.28691111,697.08,695.96,2.74392994]
[1736657037251,0.28691111,697.08,695.96,5.78160435]
[1736657037444,0.28691111,697.08,695.97,2.74392994]
[1736657039947,0.28691111,697.08,695.97,5.78160435]
[1736657040147,0.28691111,697.08,695.98,1.8121353]
[1736657040346,0.28691111,697.08,695.97,4.84980971]
[1736657040651,0.28691111,697.08,695.99,1.29245021]
[1736657041855,1.07766396,697.27,695.92,2.74370845]
[1736657042755,1.07766396,697.27,695.93,0.28738522]